[Event "7th Sharjah Masters 2024"]
[Site "Sharjah"]
[Date "2024.05.18"]
[Round "5.26"]
[White "Krzyzanowski, Marcin"]
[Black "Petrosyan, Manuel"]
[Result "1/2-1/2"]
[ECO "B30"]
[WhiteElo "2526"]
[BlackElo "2618"]
[Annotator "TA"]
[PlyCount "171"]
[EventDate "2024.05.13"]
[EventType "swiss"]
[EventCountry "UAE"]
[SourceTitle "playchess.com"]
[Source "ChessBase"]
[SourceQuality "1"]
[TimeControl "5400+30"]

1. e4 {[%emt 0:00:03]} c5 {[%emt 0:02:15]} 2. Nf3 {[%emt 0:00:07]} Nc6 {[%emt 0:00:12]} 3. Bb5 {[%emt 0:00:44]} e6 {[%emt 0:00:13]} 4. Bxc6 {[%emt 0:00:30]} bxc6 {[%emt 0:01:32]} 5. d3 {[%emt 0:00:06]} Qc7 {[%emt 0:00:43]} 6. h4 {[%emt 0:05:34] B30: Sicilian: 2...Nc6 3 Bb5, lines without ...g6.} e5 {[%emt 0:03:26]} 7. h5 {[%emt 0:01:06]} d5 {[%emt 0:06:21]} 8. Qe2 $146 {[%emt 0:04:24]} ({Predecessor:} 8. Nc3 d4 9. Ne2 h6 10. Nd2 Nf6 11. Ng3 Bg4 12. f3 Be6 13. Nc4 Be7 14. Qe2 {½-½ Jain,K (2338)-Samant,A (2511) Qatar Masters op 2023 (9)}) 8... f6 {[%emt 0:03:21]} 9. c4 {[%emt 0:09:01]} d4 {[%emt 0:11:32]} 10. Nh4 {[%emt 0:02:34]} g6 {[%emt 0:03:17]} 11. g3 {[%emt 0:07:01]} Bd6 {[%emt 0:02:31]} 12. Nd2 {[%emt 0:05:36]} Ne7 {[%emt 0:08:28]} 13. Qf3 {[%emt 0:03:54]} Rf8 {[%emt 0:01:58]} 14. Nb3 {[%emt 0:04:46]} Be6 {[%emt 0:05:48]} 15. Bh6 {[%emt 0:07:44]} Rf7 {[%emt 0:00:07]} 16. Bd2 {[%emt 0:00:21]} Qd7 {[%emt 0:02:42]} 17. hxg6 {[%emt 0:00:46]} hxg6 {[%emt 0:00:04]} 18. Qe2 {[%emt 0:05:16]} Rh7 {[%emt 0:05:57]} 19. O-O-O {[%emt 0:02:23]} O-O-O {[%emt 0:01:31]} 20. Qf3 {[%emt 0:09:50]} Rdh8 {[%emt 0:21:07]} 21. Qxf6 {[%emt 0:07:40]} Ng8 {[%emt 0:00:50]} 22. Qf3 {[%emt 0:09:23]} Bg4 {[%emt 0:00:17]} 23. Qg2 {[%emt 0:00:05]} Bxd1 {[%emt 0:00:12]} 24. Rxd1 {[%emt 0:01:39]} Qg4 {[%emt 0:01:13]} 25. f3 {[%emt 0:03:02]} Qe6 {[%emt 0:00:04]} 26. Bg5 {[%emt 0:01:25]} Nh6 {[%emt 0:06:02]} 27. f4 exf4 {[%emt 0:00:01]} 28. e5 {[%emt 0:04:57]} Bf8 {[%emt 0:00:13]} 29. Na5 {[%emt 0:01:38]} Kd7 {[%emt 0:03:44]} 30. Nxg6 {[%emt 0:00:30]} Qxg6 {[%emt 0:06:44]} 31. Bf6 {[%emt 0:00:04]} Ke8 {[%emt 0:00:17]} 32. Qxc6+ {[%emt 0:00:19]} Kf7 {[%emt 0:00:03]} 33. Qd5+ {[%emt 0:01:20]} Ke8 {[%emt 0:00:01]} 34. Qd8+ {[%emt 0:02:04]} Kf7 {[%emt 0:00:01]} 35. Qd5+ {[%emt 0:00:03]} Ke8 {[%emt 0:00:04]} 36. Qc6+ {[%emt 0:01:56]} Kf7 {[%emt 0:00:11]} 37. gxf4 {[%emt 0:00:33]} Kg8 {[%emt 0:01:08]} 38. Qd5+ {[%emt 0:00:24]} Rf7 {[%emt 0:01:06]} 39. Nc6 {[%emt 0:00:31]} Rhh7 {[%emt 0:01:07]} 40. Nd8 {[%emt 0:00:25]} Nf5 {[%emt 0:00:43]} 41. Nxf7 {[%emt 0:00:18]} Rxf7 {[%emt 0:00:19]} 42. Rh1 {[%emt 0:00:31]} Bh6 {[%emt 0:00:23]} 43. Qd8+ {[%emt 0:00:46]} Rf8 {[%emt 0:00:11]} 44. Qd5+ {[%emt 0:00:05]} Rf7 {[%emt 0:01:32]} 45. Qd8+ {[%emt 0:00:46]} Rf8 {[%emt 0:00:04]} 46. Qd7 {[%emt 0:00:47]} Bxf4+ {[%emt 0:02:18]} 47. Kb1 {[%emt 0:00:02]} Bh6 {[%emt 0:00:19]} 48. Qd5+ {[%emt 0:00:53]} (48. Qxa7 Qg2 49. Re1 Qg3 $17) 48... Kh7 {[%emt 0:00:29]} 49. Qxc5 {[%emt 0:00:13]} ({White should play} 49. a3 $1 $16) 49... Rf7 $1 $11 {[%emt 0:00:54]} 50. Qc8 {[%emt 0:00:50]} Ng7 {[%emt 0:00:01]} 51. Rd1 {[%emt 0:00:29]} (51. Ka1 $11) 51... Qh5 {[%emt 0:00:24]} ({Better is} 51... Qg2 $15 52. Qd8 Qe2) 52. Rf1 {[%emt 0:00:34]} Qe2 {[%emt 0:01:06]} 53. Qh3 {[%emt 0:00:13]} Qe3 {[%emt 0:00:19]} (53... Rb7 $5 54. b3 $8 Qe3 $11) 54. Rh1 {[%emt 0:00:23]} Qxh3 {[%emt 0:01:18]} 55. Rxh3 {[%emt 0:00:01]} Ne6 {[%emt 0:00:09]} 56. b4 {[%emt 0:00:41]} Kg6 {[%emt 0:00:11]} 57. Kc2 {[%emt 0:00:34]} Bf8 {[%emt 0:00:35]} 58. Rg3+ {[%emt 0:00:57]} (58. b5 $11 {remains equal.}) 58... Kf5 $17 {[%emt 0:00:09]} 59. a3 {[%emt 0:00:35]} a5 {[%emt 0:00:08]} 60. Kb3 $2 {[%emt 0:00:35]} (60. bxa5 $17 Ra7 (60... Bxa3 61. Rf3+ Kg4 62. Rf1 $19) 61. Bh8) 60... axb4 $19 {[%emt 0:00:12]} 61. axb4 {[%emt 0:00:01] [#]} Rb7 $1 {[%emt 0:00:21]} 62. b5 {[%emt 0:00:12] [#]} Ra7 $1 {[%emt 0:00:08]} 63. Rh3 {[%emt 0:00:33]} Kg4 $2 {[%emt 0:01:04]} (63... Nf4 $19 64. Rf3 Ra3+ 65. Kc2 Kg4 66. Rxf4+ Kxf4) 64. Rh4+ $15 {[%emt 0:00:29]} Kf3 {[%emt 0:00:07]} 65. c5 $1 {[%emt 0:00:28]} Nxc5+ {[%emt 0:01:18]} 66. Kc4 {[%emt 0:00:03]} Ra4+ {[%emt 0:00:25]} 67. Kd5 {[%emt 0:00:03]} Nxd3 {[%emt 0:00:19]} 68. Bg5 {[%emt 0:01:42]} Rb4 {[%emt 0:01:44]} 69. b6 {[%emt 0:00:25]} Rxb6 {[%emt 0:00:50]} 70. Kxd4 {[%emt 0:01:05]} Nc5 {[%emt 0:00:28]} 71. Rf4+ {[%emt 0:00:26]} Ke2 {[%emt 0:00:24]} 72. Kd5 {[%emt 0:00:32]} Ne6 {[%emt 0:00:09]} 73. Rf6 {[%emt 0:00:15]} Nc7+ {[%emt 0:00:08]} 74. Ke4 {[%emt 0:00:26]} Rb4+ {[%emt 0:00:39]} 75. Kf5 {[%emt 0:00:02]} Rb8 {[%emt 0:00:41]} 76. Rc6 {[%emt 0:00:28]} Nb5 {[%emt 0:00:16]} 77. Kg6 {[%emt 0:00:39]} Ba3 {[%emt 0:00:20]} 78. Bf6 {[%emt 0:00:21]} Nd4 {[%emt 0:01:10]} 79. Ra6 {[%emt 0:00:05]} Rb3 {[%emt 0:00:19]} 80. e6 {[%emt 0:00:36]} Rg3+ {[%emt 0:00:06]} 81. Kf7 {[%emt 0:00:30]} Nf5 {[%emt 0:00:25]} 82. e7 {[%emt 0:00:54]} Bxe7 {[%emt 0:01:00]} 83. Bxe7 {[%emt 0:00:08]} Nxe7 {[%emt 0:00:17]} 84. Kxe7 {[%emt 0:00:03]} Re3+ {[%emt 0:00:05]} 85. Re6 {[%emt 0:00:03]} Rxe6+ {[%emt 0:00:02]} 86. Kxe6 {[%emt 0:00:04]} 1/2-1/2

[Event "7th Sharjah Masters 2024"]
[Site "Sharjah"]
[Date "2024.05.18"]
[Round "5.27"]
[White "Aditya Mittal"]
[Black "Siddharth, Jagadeesh"]
[Result "1/2-1/2"]
[ECO "C02"]
[WhiteElo "2608"]
[BlackElo "2512"]
[Annotator "TA"]
[PlyCount "71"]
[EventDate "2024.05.13"]
[EventType "swiss"]
[EventCountry "UAE"]
[SourceTitle "playchess.com"]
[Source "ChessBase"]
[SourceQuality "1"]
[TimeControl "5400+30"]

{[%evp 12,71,31,17,41,0,11,-18,17,0,18,-55,-33,-57,-55,-83,-68,-66,-55,-76,-71,-72,-58,-57,-45,-55,-51,-41,-41,-47,-46,-58,-50,-44,-48,-41,-40,-62,-53,-61,-50,-33,-39,-54,-33,-54,-19,-54,-34,-34,-33,-40,-12,-20,-12,-24,-6,-19,-6,-6,0,-37]} 1. e4 {[%emt 0:00:03][%cal Be2e4,Be4e5][%mdl 32]} e6 {[%emt 0:00:15]} 2. d4 {[%emt 0:00:02]} d5 {[%emt 0:00:08]} 3. e5 {[%emt 0:00:01]} c5 {[%emt 0:00:06]} 4. c3 {[%emt 0:00:01]} Nc6 {[%emt 0:00:09]} 5. Nf3 {[%emt 0:00:02]} Bd7 {[%emt 0:00:10]} 6. Be2 {[%emt 0:00:28]} f6 {[%emt 0:00:07]} 7. O-O {[%emt 0:04:18]} fxe5 {[%emt 0:00:08]} 8. dxe5 {[%emt 0:02:24]} Nh6 {[%emt 0:00:06]} 9. Re1 {[%emt 0:03:07]} Be7 {[%emt 0:02:28]} 10. c4 {[%emt 0:13:14]} d4 {[%emt 0:00:30]} 11. Bf4 {[%emt 0:00:30]} ({White should play} 11. b4 $11) 11... O-O {[%emt 0:00:30]} 12. Qd2 {[%emt 0:00:30]} Nf5 {[%emt 0:00:30][%cal Bh6f5,Bf5h4,Bh4f3][%mdl 32]} 13. Na3 {[%emt 0:00:30]} h6 {[%emt 0:00:30]} 14. h3 {[%emt 0:00:30]} Nb4 {[%emt 0:00:30]} 15. Bh2 {[%emt 0:00:30]} Bc6 {[%emt 0:00:30] White must now prevent ...d3.} 16. Nc2 {[%emt 0:00:30]} Nh4 {[%emt 0:00:30][%cal Rc6f3]} 17. Nxb4 {[%emt 0:00:30]} Bxf3 {[%emt 0:00:30]} ({Reject} 17... cxb4 18. Nxh4 Bxh4 19. Bg3 $14) 18. Bxf3 {[%emt 0:00:30]} Nxf3+ {[%emt 0:00:30]} ({Inferior is} 18... cxb4 19. Bxb7 d3 20. Rad1 $16 (20. Bxa8 Qxa8 21. f4 b3 $19)) 19. gxf3 {[%emt 0:00:30]} cxb4 {[%emt 0:00:30]} 20. Qd3 {[%emt 0:00:30]} Bc5 {[%emt 0:30:18]} 21. Re4 {[%emt 0:43:31]} Qg5+ {[%emt 0:04:01]} 22. Bg3 {[%emt 0:00:33]} Qf5 {[%emt 0:00:30]} 23. Kg2 {[%emt 0:00:30]} Rf7 {[%emt 0:00:30]} 24. Qe2 {[%emt 0:05:58]} Raf8 {[%emt 0:06:22]} 25. Rf4 {[%emt 0:00:30]} Qg6 {[%emt 0:02:08]} 26. Rxf7 {[%emt 0:00:30]} Rxf7 {[%emt 0:00:30]} 27. Rd1 {[%emt 0:00:30]} Qf5 {[%emt 0:00:30]} 28. f4 {[%emt 0:00:30]} Rd7 {[%emt 0:00:30]} 29. Rd3 {[%emt 0:00:30]} Qg6 {[%emt 0:00:30]} 30. f3 {[%emt 0:00:30]} Rf7 {[%emt 0:00:30]} 31. Qe4 {[%emt 0:00:30]} Qxe4 {[%emt 0:00:30]} 32. fxe4 {[%emt 0:00:30]} g5 {[%emt 0:00:30]} 33. Kf3 {[%emt 0:00:30]} gxf4 {[%emt 0:00:30]} 34. Bh4 {[%emt 0:00:30] The position is equal.} Rg7 {[%emt 0:00:30]} 35. Bf2 {[%emt 0:00:30] Prevents Rg1} Rf7 {[%emt 0:00:30]} 36. Bh4 {[%emt 0:00:30] Weighted Error Value: White=0.15 (very precise) /Black=0.10 (very precise) .  Mistake:       	White=1     	---        Inaccurate:     	White=4     	Black=3      OK:         	White=10    	Black=8      Best:        	White=1     	---} 1/2-1/2

[Event "7th Sharjah Masters 2024"]
[Site "Sharjah"]
[Date "2024.05.18"]
[Round "5.28"]
[White "Adhiban, B.."]
[Black "Idani, Pouya"]
[Result "1-0"]
[ECO "B12"]
[WhiteElo "2523"]
[BlackElo "2605"]
[Annotator "TA"]
[PlyCount "59"]
[EventDate "2024.05.13"]
[EventType "swiss"]
[EventCountry "UAE"]
[SourceTitle "playchess.com"]
[Source "ChessBase"]
[SourceQuality "1"]
[TimeControl "5400+30"]

{[%evp 12,59,18,0,20,23,27,8,31,13,17,10,197,199,195,185,185,181,233,238,252,245,253,270,345,330,337,343,308,289,273,279,312,304,314,312,312,310,355,352,332,364,371,352,353,360,377,388,447,442]} 1. e4 {[%emt 0:00:08]} c6 {[%emt 0:00:06]} 2. d4 {[%emt 0:00:48]} d5 {[%emt 0:00:06]} 3. e5 {[%emt 0:00:02]} Bf5 {[%emt 0:00:06]} 4. Nc3 {[%emt 0:00:04]} e6 {[%emt 0:00:24]} 5. g4 {[%emt 0:00:04]} Bg6 {[%emt 0:00:04]} 6. Nge2 {[%emt 0:00:05]} Be7 {[%emt 0:03:27]} 7. Nf4 {[%emt 0:04:07]} Nd7 {[%emt 0:02:42]} 8. Be3 {[%emt 0:02:10]} Qb6 {[%emt 0:06:03]} 9. Rb1 {[%emt 0:02:33]} c5 {[%emt 0:09:52] The position is equal.} 10. Bb5 {[%emt 0:06:24] dxc5 is the strong threat.} O-O-O $1 {[%emt 0:00:42][%cal Od7e5]} 11. O-O $1 {[%emt 0:00:06]} Nh6 $2 {[%emt 0:19:29] [#]} (11... Nb8 $1 $11 {and Black is okay.}) 12. dxc5 $1 $18 {[%emt 0:05:23]} Qc7 {[%emt 0:00:29] [#]} (12... Bxc5 $2 13. Bxd7+ Rxd7 14. Na4 Bxe3 15. Nxb6+ $18) 13. Ncxd5 $1 {[%emt 0:02:27][%mdl 512]} exd5 {[%emt 0:00:46]} 14. Nxd5 {[%emt 0:00:05]} Nxe5 {[%emt 0:02:07]} (14... Nxc5 $142 15. Nxc7 Rxd1 16. Rbxd1 (16. Rfxd1 Kxc7 17. b4 a6 $18) 16... Kxc7) 15. Nxc7 {[%emt 0:00:40]} Rxd1 {[%emt 0:00:05]} 16. Rbxd1 {[%emt 0:02:17]} Bxc2 {[%emt 0:06:34]} 17. Nd5 {[%emt 0:04:43]} Bh4 {[%emt 0:00:09]} 18. Rc1 {[%emt 0:05:50]} Be4 {[%emt 0:00:09]} 19. Nc3 {[%emt 0:00:35]} Bf3 {[%emt 0:00:13]} 20. Bxh6 {[%emt 0:03:54]} gxh6 {[%emt 0:00:08][%cal Bg7h6,Bh6h5,Bh5g4][%mdl 32]} 21. Be2 {[%emt 0:00:12]} h5 {[%emt 0:02:07]} 22. Bxf3 {[%emt 0:04:39]} (22. gxh5 $2 Rg8#) 22... Nxf3+ {[%emt 0:00:07]} 23. Kg2 {[%emt 0:00:03]} hxg4 {[%emt 0:00:07]} 24. Nb5 {[%emt 0:01:36]} a6 {[%emt 0:00:15]} 25. Nd6+ {[%emt 0:00:16]} Kc7 {[%emt 0:00:05]} 26. h3 {[%emt 0:08:01]} ({Resist} 26. Nxf7 Rf8 $18) 26... h5 {[%emt 0:00:53][%cal Bh7h5,Bh5g4][%mdl 32]} 27. hxg4 {[%emt 0:00:28]} ({Weaker is} 27. Nxf7 Rf8 $16) 27... hxg4 {[%emt 0:00:09]} 28. Rh1 {[%emt 0:00:07]} ({Less strong is} 28. Nxf7 Rf8 $16) 28... Rf8 {[%emt 0:03:24]} 29. Rc4 {[%emt 0:02:52]} f5 {[%emt 0:04:51]} 30. Rf4 {[%emt 0:01:12] Black did not feel at home in the position after the opening.   Weighted Error Value: White=0.03 (flawless) /Black=0.31.  Loses game:     	---       	Black=1      Mistake:       	---       	Black=1      OK:         	White=15    	Black=10     Best:        	White=1     	---        Strong:       	White=2     	Black=1} 1-0

[Event "7th Sharjah Masters 2024"]
[Site "Sharjah"]
[Date "2024.05.18"]
[Round "5.29"]
[White "Gupta, Abhijeet"]
[Black "Gholami Orimi, Mahdi"]
[Result "1/2-1/2"]
[ECO "E52"]
[WhiteElo "2604"]
[BlackElo "2470"]
[Annotator "TA"]
[PlyCount "150"]
[EventDate "2024.05.13"]
[EventType "swiss"]
[EventCountry "UAE"]
[SourceTitle "playchess.com"]
[Source "ChessBase"]
[SourceQuality "1"]
[TimeControl "5400+30"]

{[%evp 17,150,0,0,0,0,0,4,0,0,0,5,-6,0,-18,0,-15,0,0,0,0,0,0,0,-1,0,0,0,0,0,-23,0,0,0,0,45,40,25,48,32,41,31,0,55,55,99,120,116,120,120,118,172,181,177,195,170,168,180,104,98,91,104,64,83,56,58,59,55,53,52,44,54,45,146,154,106,106,243,243,244,240,233,229,211,115,220,216,214,226,233,233,231,220,239,213,356,372,367,352,363,319,334,321,313,320,278,252,346,325,285,329,353,338,324,291,323,267,240,70,71,70,251,8,8,8,8,8,8,0,8,8,8,8,8,8,8]} 1. Nf3 {[%emt 0:00:12]} d5 {[%emt 0:00:20]} 2. d4 {[%emt 0:00:39]} Nf6 {[%emt 0:00:16]} 3. c4 {[%emt 0:00:13]} e6 {[%emt 0:00:06]} 4. Nc3 {[%emt 0:00:05]} Bb4 {[%emt 0:00:08]} 5. e3 {[%emt 0:00:26]} O-O {[%emt 0:01:58]} 6. Bd2 {[%emt 0:00:29]} b6 {[%emt 0:05:18]} 7. cxd5 {[%emt 0:00:50]} exd5 {[%emt 0:00:11]} 8. Bd3 {[%emt 0:00:09]} Bb7 {[%emt 0:00:24]} 9. O-O {[%emt 0:00:24]} Bd6 {[%emt 0:12:08]} 10. Qb1 {[%emt 0:06:10]} Re8 {[%emt 0:08:23]} 11. b4 {[%emt 0:06:00]} Nbd7 {[%emt 0:07:15]} 12. a4 {[%emt 0:08:22]} a6 {[%emt 0:07:31]} 13. b5 {[%emt 0:01:35]} axb5 {[%emt 0:07:56]} 14. Nxb5 {[%emt 0:12:04]} Bf8 {[%emt 0:02:21]} 15. Rc1 {[%emt 0:01:23]} c5 {[%emt 0:07:55]} 16. Be1 {[%emt 0:06:41]} c4 {[%emt 0:05:40]} 17. Bf5 {[%emt 0:01:16]} Bc6 {[%emt 0:02:10]} 18. Qb2 {[%emt 0:03:32]} Ne4 {[%emt 0:04:41]} 19. Bxe4 {[%emt 0:09:15]} Rxe4 {[%emt 0:00:56]} 20. Bb4 {[%emt 0:00:07]} Bxb4 {[%emt 0:04:04]} 21. Qxb4 {[%emt 0:00:34]} Ra5 {[%emt 0:00:54]} 22. Nd2 {[%emt 0:08:27] A dynamic duo of knights.} Re8 {[%emt 0:04:22]} 23. h3 {[%emt 0:02:32][%cal Oe3e4]} h6 {[%emt 0:03:12]} 24. Nc3 {[%emt 0:03:09]} Qf6 {[%emt 0:03:38]} 25. Rd1 {[%emt 0:02:18]} Qe7 {[%emt 0:03:20]} 26. Qxe7 {[%emt 0:08:37]} Rxe7 {[%emt 0:00:01] [#]} 27. e4 $1 {[%emt 0:00:05][%cal Be3e4,Be4e5][%mdl 32]} Nf6 {[%emt 0:02:01]} 28. Rdb1 {[%emt 0:01:06]} Ra6 {[%emt 0:04:07]} 29. e5 {[%emt 0:03:59]} Nd7 {[%emt 0:00:02]} (29... Ne8 $1 $11) 30. f4 {[%emt 0:00:54]} Re8 {[%emt 0:02:43]} 31. Nf1 $36 {[%emt 0:01:49][%mdl 2048] White is on the roll.} f6 {[%emt 0:00:51]} 32. Ne3 {[%emt 0:06:26]} fxe5 {[%emt 0:00:02]} 33. fxe5 {[%emt 0:00:04]} Nxe5 {[%emt 0:00:47]} 34. Nexd5 $1 $18 {[%emt 0:01:07]} (34. dxe5 $6 d4 35. Ned5 dxc3 $16) 34... Bxd5 {[%emt 0:01:06]} 35. Nxd5 {[%emt 0:00:05][%cal Od5c7]} Ra5 {[%emt 0:00:30]} 36. Nxb6 {[%emt 0:01:39]} Nc6 {[%emt 0:00:02]} 37. d5 {[%emt 0:01:27]} (37. Nxc4 $18 Rd5 38. Rd1) 37... Ne5 $16 {[%emt 0:00:29]} 38. Rc1 {[%emt 0:03:32]} (38. d6 {is more complex.} c3 39. d7 Rd8 40. Ra2) 38... Rd8 {[%emt 0:01:10]} 39. Rab1 {[%emt 0:00:39]} (39. Nxc4 Nxc4 40. Rxc4 Rdxd5 $14) 39... Nd7 {[%emt 0:00:22]} 40. Rxc4 {[%emt 0:01:34]} Rb8 {[%emt 0:00:26]} 41. Rc8+ {[%emt 0:00:25]} Rxc8 {[%emt 0:00:01]} 42. Nxc8 {[%emt 0:00:04] Rb7 would now be deadly.} Rxa4 $14 {[%emt 0:00:16][%mdl 4096] Endgame. KRN-KRN} 43. Rb7 {[%emt 0:00:05]} Nf6 {[%emt 0:00:37]} 44. Ne7+ {[%emt 0:00:27]} Kh8 {[%emt 0:00:30]} (44... Kh7 $14) 45. d6 $16 {[%emt 0:00:47]} Rd4 {[%emt 0:00:36]} (45... Ra1+ $142 46. Kh2 Rd1) 46. Nf5 {[%emt 0:00:12][%csl LRd4,LRg7] White is more active.} Rd5 {[%emt 0:00:48]} (46... Rd1+ $16 47. Kh2 h5 48. Rxg7 Rxd6) 47. g4 $18 {[%emt 0:00:42]} (47. Nxg7 $6 Rxd6 48. Nf5 Rd1+ 49. Kh2 h5 $16) 47... Ne4 {[%emt 0:00:47]} 48. d7 {[%emt 0:00:54]} ({Less strong is} 48. Nxg7 Rxd6 49. Nh5 Nf6 $14) (48. Rxg7 Rd1+ 49. Kg2 Nxd6 $11) 48... Kh7 {[%emt 0:00:20] [#]} 49. d8=Q $1 {[%emt 0:00:52][%mdl 512]} Rxd8 {[%emt 0:00:03]} 50. Rxg7+ {[%emt 0:00:04]} ({And not} 50. Nxg7 Kg6 $11) 50... Kh8 {[%emt 0:00:03]} 51. Rg6 $1 {[%emt 0:00:03] Prevents Nd6} h5 {[%emt 0:00:33]} 52. Rh6+ {[%emt 0:00:08]} (52. gxh5 Ra8 $14) 52... Kg8 {[%emt 0:00:02]} 53. Rxh5 {[%emt 0:00:09]} ({Stronger than} 53. gxh5 Kf7 $11) 53... Rd2 {[%emt 0:00:41]} 54. Ne3 {[%emt 0:00:28]} Re2 {[%emt 0:01:26]} 55. Nd5 {[%emt 0:00:54] Hoping for Re5.} Ng3 {[%emt 0:00:46]} (55... Ra2 {was called for.} 56. Re5 Nd2) 56. Rg5+ {[%emt 0:00:26]} Kf7 {[%emt 0:00:03]} 57. Nf4 {[%emt 0:00:17]} Ra2 {[%emt 0:00:08]} 58. Re5 {[%emt 0:00:42]} Kf6 {[%emt 0:01:00]} 59. Rb5 {[%emt 0:01:19]} Ne4 {[%emt 0:00:34]} 60. Rf5+ {[%emt 0:00:13]} Kg7 {[%emt 0:00:06]} 61. Re5 {[%emt 0:00:26]} Ra1+ {[%emt 0:00:58]} 62. Kg2 {[%emt 0:00:51]} Ra2+ {[%emt 0:00:02]} 63. Kf3 {[%emt 0:00:45]} Nd2+ {[%emt 0:00:02]} 64. Kg3 {[%emt 0:00:04]} Ra3+ {[%emt 0:00:30]} 65. Kg2 {[%emt 0:00:08]} Nf3 {[%emt 0:00:08]} 66. Re7+ {[%emt 0:01:03]} Kh6 {[%emt 0:01:00]} 67. Re2 $2 {[%emt 0:01:03]} (67. Kf2 $18 {And now Re3 would win.} Ng5 68. Re3) 67... Kg5 {[%emt 0:01:30]} 68. Nd5 {[%emt 0:00:29] Threatens to win with Re3.} Kh4 $2 {[%emt 0:00:39]} (68... Nh4+ $14 69. Kh2 Ng6) 69. Re3 $2 {[%emt 0:00:33]} ({White should play} 69. Re8 $18) 69... Rxe3 $11 {The position is equal.} 70. Nxe3 {[%emt 0:00:01] KN-KN} Ne1+ {[%emt 0:00:24]} 71. Kf2 {[%emt 0:00:42]} Nd3+ {[%emt 0:00:41]} 72. Kg2 {[%emt 0:00:08] Strongly threatening Nf5+.} Nf4+ {[%emt 0:00:36]} 73. Kf3 {[%emt 0:00:04]} Nxh3 {[%emt 0:00:25]} 74. Ng2+ {[%emt 0:01:14]} Kg5 {[%emt 0:00:02]} 75. Kg3 {[%emt 0:00:05]} Nf2 {[%emt 0:00:15] Black escapes into a draw.   Weighted Error Value: White=0.08 (flawless) /Black=0.15 (very precise) .  Loses game:     	---       	Black=1      Missed win:     	White=2     	---        Mistake:       	White=1     	Black=6      Inaccurate:     	White=3     	Black=4      OK:         	White=26    	Black=19     Best:        	White=7     	Black=12     Strong:       	White=2     	---} 1/2-1/2

[Event "7th Sharjah Masters 2024"]
[Site "Sharjah"]
[Date "2024.05.18"]
[Round "5.30"]
[White "Blohberger, Felix"]
[Black "Kuybokarov, Temur"]
[Result "1/2-1/2"]
[ECO "A07"]
[WhiteElo "2506"]
[BlackElo "2602"]
[Annotator "TA"]
[PlyCount "47"]
[EventDate "2024.05.13"]
[EventType "swiss"]
[EventCountry "UAE"]
[SourceTitle "playchess.com"]
[Source "ChessBase"]
[SourceQuality "1"]
[TimeControl "5400+30"]

{[%evp 9,47,0,3,0,0,0,12,0,12,-7,0,2,23,0,0,-3,6,4,0,-11,0,-6,1,0,12,0,30,0,0,0,0,0,0,0,0,0,19,17,77,0]} 1. Nf3 {[%emt 0:00:04]} d5 {[%emt 0:00:16]} 2. g3 {[%emt 0:00:07]} Bg4 {[%emt 0:01:05]} 3. Bg2 {[%emt 0:00:07]} c6 {[%emt 0:00:34]} 4. h3 {[%emt 0:00:51]} Bxf3 {[%emt 0:00:55]} 5. Bxf3 {[%emt 0:00:09]} Nd7 {[%emt 0:01:28]} 6. O-O {[%emt 0:01:47]} e5 {[%emt 0:00:38]} 7. d3 {[%emt 0:00:07]} Ngf6 {[%emt 0:00:42][%cal Bg8f6,Bf6d5,Bd5c7,Bc7e6][%mdl 32]} 8. e4 {[%emt 0:00:14] The position is equal.} Bc5 {[%emt 0:04:33]} 9. exd5 {[%emt 0:09:00]} Nxd5 {[%emt 0:02:25]} 10. Nc3 {[%emt 0:04:12]} Nc7 {[%emt 0:06:43]} 11. Na4 {[%emt 0:12:55]} Be7 {[%emt 0:02:58]} 12. d4 {[%emt 0:00:33]} exd4 {[%emt 0:05:30]} 13. Qxd4 {[%emt 0:02:15]} Ne6 {[%emt 0:02:02]} 14. Qe3 {[%emt 0:11:55]} Qa5 {[%emt 0:07:18]} 15. b3 {[%emt 0:03:17]} h5 {[%emt 0:17:29] Prevents Bg4.} 16. Bb2 {[%emt 0:13:02]} Qf5 {[%emt 0:07:38]} 17. Bg2 {[%emt 0:05:13]} Bf6 {[%emt 0:05:06]} 18. Rfe1 {[%emt 0:04:36]} O-O {[%emt 0:02:06]} 19. Rad1 {[%emt 0:00:54]} Rfd8 {[%emt 0:02:51]} 20. Qd3 {[%emt 0:08:16]} Qa5 {[%emt 0:03:26]} 21. Bc3 {[%emt 0:00:29]} Bxc3 {[%emt 0:00:18]} 22. Qxc3 {[%emt 0:00:07]} Qc7 {[%emt 0:03:05]} 23. h4 {[%emt 0:01:18]} Rac8 {[%emt 0:03:05]} (23... Nf6 $11) 24. Bf3 {[%emt 0:01:18] Weighted Error Value: White=0.06 (flawless) /Black=0.10 (very precise) .  Mistake:       	White=1     	Black=1      Inaccurate:     	White=1     	Black=1      OK:         	White=7     	Black=10} (24. Bh3 $16) 1/2-1/2